bitfinex/quotes_SOLUSD_20250809
["timestamp","ask_amount","ask_price","bid_price","bid_amount"]
[1754733980586,0.71,182.83,182.81,4.00151723]
[1754733980770,5.46926274,182.84,182.8,0.06]
[1754733980771,5.46926274,182.84,182.82,4.00151723]
[1754733980955,5.46926274,182.84,182.83,4.00151723]
[1754733981160,5.46926274,182.84,182.8,0.06]
[1754733981372,0.71,182.83,182.81,4.0009534]
[1754733981586,0.71,182.83,182.82,4.0009534]
[1754733981786,5.5612845,182.83,182.82,4.0009534]
[1754733982087,5.46926274,182.84,182.82,4.0009534]
[1754733982270,5.46926274,182.84,182.83,4.0009534]
[1754733983063,6.17926274,182.84,182.83,4.0009534]
[1754733983284,11.03054724,182.84,182.83,4.0009534]
[1754733983783,11.03054724,182.84,182.83,4.00033609]
[1754733984263,6.17926274,182.84,182.83,4.00033609]
[1754733984570,11.03054724,182.84,182.83,4.00033609]
[1754733985175,11.03054724,182.84,182.83,3.9995962]
[1754733986068,11.03054724,182.84,182.8,0.06]
[1754733986269,4.8512845,182.83,182.81,3.99974095]
[1754733986479,4.8512845,182.83,182.82,3.99974095]
[1754733986880,5.5612845,182.83,182.82,3.99974095]
[1754733987474,11.03084638,182.83,182.82,3.99974095]
[1754733988005,6.17956188,182.83,182.82,3.99974095]
[1754733989004,6.17956188,182.83,182.82,3.99815952]
[1754733989175,6.17956188,182.83,182.8,0.06]
[1754733989501,10.32144477,182.81,182.8,0.06]
[1754733989688,10.32144477,182.81,182.8,4.05764033]
[1754733991791,5.47016027,182.81,182.8,4.05764033]
[1754733992421,13.67300569,182.85,182.8,4.77764033]
[1754733992616,4.8512845,182.84,182.81,3.99764033]
[1754733992779,4.8512845,182.84,182.82,3.99764033]
[1754733993119,4.8512845,182.84,182.81,0.72]
[1754733993416,13.67300569,182.85,182.8,0.06]
[1754733993577,4.8512845,182.84,182.81,4.6674313]
[1754733993777,0.03,182.86,182.83,4.8512845]
[1754733994013,0.03,182.86,182.84,9.5187158]
[1754733994316,0.03,182.86,182.85,3.9974313]
[1754733996576,5.49866455,182.86,182.85,4.6674313]
[1754733996797,0.03,182.86,182.85,4.6674313]
[1754733997008,0.03,182.86,182.85,9.5187158]
[1754733997704,0.03,182.86,182.85,4.6674313]
[1754733997907,0.03,182.86,182.85,9.5187158]
[1754733999328,0.03,182.86,182.85,4.6674313]
[1754733999526,0.03,182.86,182.85,9.5187158]
[1754734000400,0.03,182.86,182.85,4.6674313]
[1754734000619,0.03,182.86,182.85,0.67]
[1754734000822,0.03,182.86,182.85,4.66364798]
[1754734003724,0.03,182.86,182.85,4.66269199]
[1754734004226,0.03,182.86,182.85,9.51397649]
[1754734005226,0.03,182.86,182.85,4.66269199]
[1754734005523,0.03,182.86,182.85,9.51397649]
[1754734006397,0.03,182.86,182.85,5.5212845]
[1754734006618,0.03,182.86,182.85,9.51254956]
[1754734006822,0.03,182.86,182.85,4.66126506]
[1754734007028,0.03,182.86,182.85,3.99126506]
[1754734007608,0.03,182.86,182.85,4.66126506]
[1754734007803,0.03,182.86,182.85,9.51254956]
[1754734009435,0.03,182.86,182.85,14.98151319]
[1754734009627,0.03,182.86,182.85,40.98151319]
[1754734010008,0.03,182.86,182.85,14.98151319]
[1754734010423,0.03,182.86,182.85,40.98151319]
[1754734010625,0.03,182.86,182.85,14.98151319]
[1754734011129,0.03,182.86,182.85,40.98151319]
[1754734011332,0.03,182.86,182.85,14.98151319]
[1754734012908,0.03,182.86,182.85,40.98151319]
[1754734013120,0.03,182.86,182.85,14.98151319]
[1754734013341,0.03,182.86,182.85,17.17035519]
[1754734014136,0.03,182.86,182.85,43.17035519]
[1754734014446,0.03,182.86,182.85,11.70139156]
[1754734014620,0.03,182.86,182.85,17.17035519]
[1754734017929,0.03,182.86,182.85,6.18010706]
[1754734018132,0.03,182.86,182.85,34.8371121]
[1754734018332,0.03,182.86,182.85,8.8371121]
[1754734018528,0.03,182.86,182.85,9.5071121]
[1754734020338,0.03,182.86,182.85,4.6558276]
[1754734020559,0.03,182.86,182.85,9.5071121]
[1754734020844,0.03,182.86,182.85,14.97607573]
[1754734021046,0.03,182.86,182.85,9.5071121]
[1754734021225,0.03,182.86,182.85,14.97607573]
[1754734022350,0.03,182.86,182.85,10.12479123]
[1754734022661,0.03,182.86,182.85,14.97607573]
[1754734024456,0.03,182.86,182.85,10.12479123]
[1754734024750,0.03,182.86,182.85,14.97607573]
[1754734025051,0.03,182.86,182.85,19.82736023]
[1754734025353,0.03,182.86,182.85,14.97607573]
[1754734025725,0.03,182.86,182.85,20.37425659]
[1754734027450,0.03,182.88,182.87,26.0]
[1754734027650,0.03,182.88,182.87,79.5083966]
[1754734027857,0.03,182.88,182.87,80.1783966]
[1754734028044,0.03,182.88,182.87,82.3669996]
[1754734028251,0.03,182.88,182.87,77.5157151]
[1754734028550,0.03,182.88,182.87,76.8457151]
[1754734028746,0.03,182.88,182.87,77.5157151]
[1754734028934,0.03,182.88,182.87,72.6644306]
[1754734029137,0.03,182.88,182.87,77.5157151]
[1754734029662,0.03,182.88,182.87,87.8353651]
[1754734030732,0.03,182.88,182.87,88.38220165]
[1754734031149,0.03,182.88,182.87,48.0153651]
[1754734031458,0.03,182.88,182.87,87.7753651]
[1754734038448,1.62171344,182.9,182.87,87.7753651]
[1754734038650,0.03,182.92,182.89,4.8512845]
[1754734038848,0.03,182.92,182.91,4.8512845]
[1754734039053,0.03,182.92,182.91,74.47661379]
[1754734039356,0.03,182.92,182.91,80.61378343]
[1754734039553,0.03,182.92,182.91,86.40894243]
[1754734039759,0.03,182.92,182.91,79.94378343]
[1754734040060,0.03,182.92,182.91,80.61378343]
[1754734040241,0.03,182.94,182.91,80.61378343]
[1754734040242,0.03,182.94,182.93,26.0]
[1754734040443,0.03,182.94,182.93,74.45661379]
[1754734041041,0.03,182.94,182.93,76.64449879]
[1754734041372,0.03,182.94,182.93,82.1110707]
[1754734042568,0.03,182.94,182.93,82.7810707]
[1754734043377,0.03,182.94,182.93,85.53158427]
[1754734043667,0.32384956,182.98,182.97,9.702569]
[1754734043973,0.32384956,182.98,182.97,53.30569293]
[1754734044772,0.32384956,182.98,182.97,48.45440843]
[1754734045769,0.32384956,182.98,182.97,53.91978526]
[1754734045958,0.32384956,182.98,182.97,53.30569293]
[1754734046158,0.32384956,182.98,182.97,53.97569293]
[1754734046354,0.32384956,182.98,182.97,48.45440843]
[1754734046565,1.02384956,182.98,182.97,74.45440843]
[1754734047979,0.32384956,182.98,182.97,85.44106976]
[1754734048449,0.32384956,182.98,182.97,45.15106976]
[1754734048648,0.32384956,182.98,182.97,79.91978526]
[1754734048861,0.32384956,182.98,182.97,85.44106976]
[1754734049053,0.32384956,182.98,182.97,59.44106976]
[1754734050358,0.32384956,182.98,182.97,75.84751176]
[1754734051480,0.32384956,182.98,182.97,75.17751176]
[1754734051692,0.32384956,182.98,182.97,64.86085043]
[1754734051921,0.03,183.02,182.99,30.8512845]
[1754734052116,0.03,183.02,183.01,4.8512845]
[1754734052317,0.03,183.02,183.01,48.44186868]
[1754734052528,0.03,183.02,183.01,53.90605096]
[1754734052814,0.03,183.02,183.01,56.09297896]
[1754734054488,0.03,183.02,183.01,56.76297896]
[1754734054884,0.03,183.02,183.01,56.09297896]
[1754734055385,0.03,183.02,183.01,56.76055847]
[1754734058020,0.1,183.07,183.04,26.0]
[1754734058220,0.1,183.07,183.06,4.8512845]
[1754734058526,0.1,183.07,183.06,8.81944819]
[1754734058912,0.76,183.07,183.06,8.81944819]
[1754734059110,0.76,183.07,183.06,48.41944819]
[1754734059924,0.76,183.07,183.06,48.43384379]
[1754734060331,0.1,183.07,183.06,48.43384379]
[1754734061214,0.76,183.07,183.06,48.43384379]
[1754734062520,0.1,183.07,183.06,48.43384379]
[1754734064519,0.03,183.13,183.09,26.0]
[1754734064830,0.66,183.23,183.12,35.702569]
[1754734065031,0.66,183.23,183.18,26.0]
[1754734065208,0.66,183.23,183.22,4.8512845]
[1754734065408,5.45762156,183.23,183.19,39.6]
[1754734065609,5.45762156,183.23,183.2,4.8512845]
[1754734065917,0.66,183.22,183.16,65.6]
[1754734066311,5.45762156,183.23,183.21,4.8512845]
[1754734066529,5.45762156,183.23,183.22,4.8512845]
[1754734066723,5.45762156,183.23,183.17,0.67]
[1754734066724,10.30890606,183.23,183.17,4.8512845]
[1754734067037,23.95295998,183.23,183.17,4.8512845]
[1754734067243,0.63,183.22,183.2,4.8512845]
[1754734067423,0.63,183.22,183.21,4.8512845]
[1754734068228,0.63,183.24,183.21,44.4312845]
[1754734068431,0.63,183.23,183.21,39.58]
[1754734068636,0.63,183.22,183.21,39.58]
[1754734068816,5.4812845,183.22,183.14,4.8512845]
[1754734069141,23.95191754,183.24,183.14,4.8512845]
[1754734069142,4.8512845,183.19,183.14,44.4312845]
[1754734069329,4.8512845,183.16,183.14,39.58]
[1754734069532,0.63,183.15,183.12,39.58]
[1754734069736,0.63,183.14,183.09,21.2451745]
[1754734069923,4.8512845,183.13,183.08,4.8512845]
[1754734070234,0.63,183.15,183.1,44.4312845]
[1754734070440,5.4812845,183.15,183.1,44.4312845]
[1754734070640,6.09030359,183.14,183.11,39.58]
[1754734070836,0.63,183.16,183.12,4.8512845]
[1754734071339,0.63,183.16,183.11,65.58]
[1754734071647,5.4812845,183.19,183.14,4.8512845]
[1754734071822,4.8512845,183.19,183.14,44.4312845]
[1754734072021,0.63,183.18,183.14,44.4312845]
[1754734073646,0.63,183.18,183.15,4.8512845]
[1754734073943,0.63,183.18,183.14,44.4312845]
[1754734074146,0.63,183.18,183.14,45.1012845]
[1754734074355,0.63,183.17,183.14,44.4312845]
[1754734074545,6.08948323,183.17,183.14,44.4312845]
[1754734074730,5.5112845,183.2,183.15,5.5212845]
[1754734074932,5.5112845,183.2,183.15,0.67]
[1754734075244,0.66,183.2,183.16,4.8512845]
[1754734075622,0.66,183.19,183.15,4.8512845]
[1754734075823,0.66,183.19,183.15,5.5212845]
[1754734076040,6.11821734,183.21,183.17,4.8512845]
[1754734076271,6.11762156,183.23,183.18,4.8512845]
[1754734076434,6.11762156,183.23,183.19,4.8512845]
[1754734077234,6.11762156,183.23,183.19,5.5212845]
[1754734077417,6.11762156,183.23,183.2,4.8512845]
[1754734077622,5.4573879,183.24,183.2,4.8512845]
[1754734077838,5.45672814,183.26,183.22,4.8512845]
[1754734078322,5.45672814,183.26,183.2,39.56]
[1754734078323,4.8512845,183.24,183.2,39.56]
[1754734078541,0.03,183.27,183.23,4.8512845]
[1754734078542,6.14644555,183.27,183.23,4.8512845]
[1754734078746,10.0,183.23,183.02,87.16488764]
[1754734078947,4.8512845,183.13,182.97,0.06]
[1754734079250,4.8512845,183.14,183.08,4.8512845]
[1754734079427,5.5112845,183.14,183.08,4.8512845]
[1754734080131,5.46060175,183.13,183.06,0.67]
[1754734080340,5.46060175,183.13,183.08,4.8512845]
[1754734080546,0.66,183.12,183.11,0.06]
[1754734081337,0.66,183.15,183.11,0.06]
[1754734081867,13.33707921,183.16,183.11,0.06]
[1754734082049,0.66,183.14,183.11,0.06]
[1754734082222,0.66,183.14,183.11,4.03008779]
[1754734083253,5.46003182,183.15,183.11,4.03008779]
[1754734083455,7.87737186,183.12,183.02,17.097475]
[1754734083627,26.98741733,183.15,183.03,3.97763182]
[1754734083628,7.87737186,183.07,183.03,3.97763182]
[1754734083826,26.98741733,183.15,183.0,39.96]
[1754734083827,0.72,183.09,183.04,3.97763182]
[1754734084026,8.59737186,183.08,183.05,3.97763182]
[1754734084247,14.05961936,183.08,183.02,33.87737186]
[1754734084534,6.1822475,183.08,183.03,11.85678623]
[1754734084736,0.72,183.08,183.04,11.85678623]
[1754734084953,0.72,183.1,183.05,11.85678623]
[1754734085153,0.72,183.1,183.06,3.97941437]
[1754734085331,7.87737186,183.09,183.06,3.97941437]
[1754734085536,8.59737186,183.09,183.04,7.87737186]
[1754734085832,8.59737186,183.09,183.05,3.9808292]
[1754734086030,0.72,183.08,183.06,3.9808292]
[1754734086354,5.46268982,183.06,182.97,0.06]
[1754734086560,7.87737186,183.01,182.99,3.98685292]
[1754734086854,0.72,183.0,182.99,3.98685292]
[1754734088051,8.59737186,183.0,182.99,3.98685292]
[1754734088253,5.46477949,182.99,182.97,0.06]
[1754734088468,6.18477949,182.99,182.97,0.06]
[1754734088772,7.87737186,183.01,182.97,0.06]
[1754734088934,7.87737186,182.99,182.97,0.06]
[1754734089138,19.12254821,183.03,182.97,0.06]
[1754734089139,0.72,183.0,182.97,0.06]
[1754734089381,7.87737186,182.99,182.97,0.06]
[1754734089662,8.59737186,182.99,182.97,0.06]
[1754734090234,14.06215135,182.99,182.97,0.06]
[1754734090644,0.72,182.99,182.97,0.06]
[1754734090862,40.12,183.0,182.97,0.06]
[1754734091156,45.58461121,183.0,182.97,0.06]
[1754734091934,0.72,182.99,182.97,0.06]
[1754734092136,14.06215135,182.99,182.97,0.06]
[1754734093535,6.18477949,182.99,182.97,0.06]
[1754734093736,14.06215135,182.99,182.97,0.06]
[1754734094161,54.22215135,182.99,182.97,0.06]
[1754734095068,54.20215135,182.99,182.97,0.06]
[1754734095584,54.18215135,182.99,182.97,0.06]
[1754734095865,14.06215135,182.99,182.97,0.06]
[1754734096041,54.18215135,182.99,182.97,0.06]
[1754734097237,45.58477949,182.99,182.97,0.06]
[1754734097445,5.46477949,182.99,182.97,0.06]
[1754734097671,13.34155414,183.01,182.97,0.06]
[1754734097846,6.18418228,183.01,182.97,0.06]
[1754734098369,5.46418228,183.01,182.97,0.06]
[1754734098573,13.34155414,183.01,182.97,0.06]
[1754734100081,5.46418228,183.01,182.97,7.93737186]
[1754734100571,45.54391943,183.02,182.98,0.9]
[1754734100790,13.34129129,183.02,182.98,0.2]
[1754734100994,5.46391943,183.02,182.98,8.77737186]
[1754734101164,45.54362249,183.03,182.99,8.57737186]
[1754734101485,40.1,183.05,183.0,0.7]
[1754734101673,40.1,183.05,183.01,7.87737186]
[1754734101858,40.1,183.05,183.01,0.7]
[1754734102057,40.1,183.05,183.01,8.57737186]
[1754734102563,40.1,183.06,183.01,0.7]
[1754734102882,45.54239143,183.07,183.02,8.57737186]
[1754734103080,45.54239143,183.07,183.02,0.7]
[1754734103380,5.46239143,183.07,183.02,0.7]
[1754734103582,6.18239143,183.07,183.02,8.57737186]
[1754734103961,14.05976329,183.07,183.02,8.57737186]
[1754734104164,5.46239143,183.07,183.03,0.7]
[1754734104580,13.33976329,183.07,183.03,0.7]
[1754734105084,5.46239143,183.07,183.03,8.57737186]
[1754734105376,5.46239143,183.07,183.04,0.7]
[1754734106159,5.46209307,183.08,183.04,0.7]
[1754734106364,5.46209307,183.08,183.04,8.57737186]
[1754734106782,5.46209307,183.08,183.05,8.57737186]
[1754734106962,5.46209307,183.08,183.06,0.7]
[1754734107388,5.46209307,183.08,183.05,7.87737186]
[1754734107788,5.46179474,183.09,183.05,7.87737186]
[1754734107992,5.46179474,183.09,183.05,8.57737186]
[1754734108175,5.46179474,183.09,183.05,0.7]
[1754734108377,6.18179474,183.09,183.05,7.87737186]
[1754734108575,0.72,183.08,182.99,26.0]
[1754734108790,8.59737186,183.08,183.03,7.87737186]
[1754734108988,0.72,183.07,183.03,7.87737186]
[1754734109195,0.72,183.07,183.02,26.0]
[1754734109196,16.404648,183.15,183.09,26.0]
[1754734109376,0.03,183.18,183.14,7.87737186]
[1754734109591,7.87737186,183.16,183.08,16.398371]
[1754734109797,26.03,183.18,182.94,27.38990358]
[1754734109798,5.46149645,183.1,183.05,0.7]
[1754734110090,7.87737186,183.07,183.02,0.7]
[1754734110388,40.3,183.07,183.01,33.87737186]
[1754734110564,40.3,183.07,183.03,0.7]
[1754734110766,40.3,183.08,183.04,0.7]
[1754734110980,6.18149645,183.1,183.04,0.7]
[1754734110981,6.18149645,183.1,183.04,8.57737186]
[1754734111193,40.28,183.09,183.04,0.7]
[1754734111693,40.28,183.09,183.05,0.7]
[1754734111994,40.28,183.09,183.04,7.87737186]
[1754734111995,45.76149645,183.1,183.06,0.7]
[1754734112285,45.76149645,183.1,183.04,26.0]
[1754734112286,0.72,183.09,183.04,26.0]
[1754734112526,0.72,183.08,183.04,26.0]
[1754734112668,0.72,183.09,183.04,26.7]
[1754734112862,45.76149645,183.1,183.04,26.7]
[1754734112863,45.76149645,183.1,183.05,0.7]
[1754734113066,45.76149645,183.1,183.06,0.7]
[1754734114090,45.76149645,183.1,183.07,5.54639088]
[1754734114271,45.76149645,183.1,183.07,0.71]
[1754734114471,45.76149645,183.1,183.07,5.54639088]
[1754734114983,5.55639088,183.09,183.04,26.0]
[1754734115280,0.72,183.09,183.05,3.97730951]
[1754734115480,0.72,183.08,183.04,26.0]
[1754734115681,0.72,183.08,183.04,30.83639088]
[1754734116199,6.18223185,183.08,183.04,31.54639088]
[1754734116378,5.46223185,183.08,183.04,31.54639088]
[1754734116691,45.72178699,183.1,183.05,5.54639088]
[1754734116870,45.72178699,183.1,183.06,0.71]
[1754734117070,45.72178699,183.1,183.07,0.71]
[1754734117299,5.46178699,183.1,183.06,4.83639088]
[1754734117495,5.46178699,183.1,183.08,0.71]
[1754734117998,5.46119818,183.11,183.08,0.71]
[1754734118383,4.83639088,183.09,183.04,26.0]
[1754734118587,0.72,183.08,183.04,26.0]
[1754734118788,5.55639088,183.08,183.04,26.0]
[1754734119415,5.55639088,183.07,183.03,26.0]
[1754734119900,0.72,183.07,183.03,26.0]
[1754734120073,5.46239143,183.07,183.04,3.98042392]
[1754734120274,5.46239143,183.07,183.03,26.71]
[1754734120503,45.70213564,183.08,183.04,3.98108386]
[1754734121097,45.70213564,183.08,183.04,4.69108386]
[1754734121402,45.70213564,183.08,183.05,3.98108386]
[1754734121883,51.25852652,183.08,183.04,0.71]
[1754734122195,13.65299546,183.11,183.05,4.6947431]
[1754734122196,40.32,183.09,183.05,4.6947431]
[1754734122399,0.72,183.08,183.03,4.83639088]
[1754734122609,0.72,183.08,183.04,3.9845433]
[1754734122775,0.72,183.08,183.05,3.9845433]
[1754734122982,5.55639088,183.08,183.03,4.83639088]
[1754734123177,5.55639088,183.08,183.04,3.98456072]
[1754734123377,5.55639088,183.08,183.05,3.98456072]
[1754734123621,5.55639088,183.08,183.06,3.98456072]
[1754734123907,5.55639088,183.07,183.03,26.06]
[1754734124192,6.18270804,183.06,183.04,3.98925702]
[1754734124391,5.46244471,183.07,183.05,3.98925702]
[1754734124595,5.46244471,183.07,183.03,26.06]
[1754734124794,5.46244471,183.07,183.04,3.98883134]
[1754734124993,5.46244471,183.07,183.05,3.98883134]
[1754734125190,6.18244471,183.07,183.03,0.77]
[1754734125397,6.18244471,183.07,183.04,3.98901204]
[1754734125702,6.18244471,183.07,183.05,3.98901204]
[1754734125900,6.18244471,183.07,183.03,0.77]
[1754734126101,11.01883559,183.07,183.04,3.98856902]
[1754734126288,0.03,183.11,183.05,4.69856902]
[1754734126486,0.03,183.11,183.06,3.98856902]
[1754734126487,4.86639088,183.11,183.06,3.98856902]
[1754734126696,0.72,183.1,183.05,5.54639088]
[1754734126893,5.55639088,183.1,183.06,3.98865996]
[1754734127097,6.18149645,183.1,183.06,3.98865996]
[1754734127306,5.46149645,183.1,183.06,0.71]
[1754734127485,5.46149645,183.1,183.07,3.9893992]
[1754734127813,11.01788733,183.1,183.07,3.9893992]
[1754734128016,11.01788733,183.1,183.04,5.54639088]
[1754734128224,11.01788733,183.1,183.05,3.98978452]
[1754734128225,24.67162845,183.1,183.05,3.98978452]
[1754734128505,4.83639088,183.07,183.03,0.06]
[1754734128686,4.83639088,183.08,183.04,3.99179403]
[1754734128887,4.83639088,183.08,183.05,3.99179403]
[1754734129101,0.72,183.07,183.03,0.06]
[1754734129313,5.46268982,183.06,183.04,3.99201992]
[1754734129621,5.46268982,183.06,183.05,3.99201992]
[1754734130130,0.03,183.11,183.07,26.0]
[1754734130284,0.03,183.11,183.1,4.83639088]
[1754734130479,0.03,183.11,183.1,8.8284108]
[1754734130808,0.03,183.11,183.1,9.5384108]
[1754734132124,0.03,183.11,183.1,4.70201992]
[1754734132289,0.03,183.11,183.1,9.5384108]
[1754734132685,0.03,183.11,183.1,12.57601965]
[1754734133007,0.03,183.11,183.1,4.70201992]
[1754734133299,0.03,183.11,183.1,12.57601965]
[1754734133693,0.03,183.11,183.1,3.99201992]
[1754734133887,0.03,183.11,183.08,39.33434773]
[1754734134092,0.03,183.11,183.09,3.98487901]
[1754734134313,0.03,183.11,183.09,11.85887874]
[1754734134483,0.03,183.11,183.1,3.98457046]
[1754734134896,0.03,183.11,183.1,3.98427558]
[1754734135305,0.03,183.11,183.09,7.87399973]
[1754734135603,0.03,183.11,183.08,7.87399973]
[1754734135804,8.59399973,183.1,183.05,34.58399973]
[1754734136010,0.72,183.09,183.03,0.06]
[1754734136191,7.87399973,183.1,183.05,7.87399973]
[1754734136384,7.87399973,183.1,183.05,8.58399973]
[1754734136894,7.87399973,183.09,183.05,0.71]
[1754734137089,0.72,183.1,183.05,0.71]
[1754734137308,0.72,183.09,183.04,7.87399973]
[1754734137494,5.46209307,183.08,183.05,3.99016848]
[1754734138088,5.46209307,183.08,183.05,11.86416821]
[1754734138288,5.46209307,183.08,183.06,3.99124045]
[1754734138495,5.46209307,183.08,183.05,8.58399973]
[1754734138803,5.46209307,183.08,183.04,7.87399973]
[1754734138987,5.46209307,183.08,183.05,3.99212042]
[1754734139187,5.46209307,183.08,183.05,12.57612015]
[1754734139408,5.46209307,183.08,183.06,3.99212042]
[1754734139729,5.46179474,183.09,183.06,3.99212042]
[1754734139889,0.03,183.11,183.08,7.87399973]
[1754734140090,0.03,183.11,183.1,7.87399973]
[1754734140311,0.03,183.11,183.1,11.86612015]
[1754734140613,0.03,183.11,183.1,12.57612015]
[1754734141407,0.03,183.11,183.1,4.70212042]
[1754734141602,0.03,183.11,183.1,38.57612015]
[1754734142523,0.03,183.11,183.1,30.70212042]
[1754734142689,0.03,183.11,183.1,38.57612015]
[1754734142891,8.62399973,183.11,183.1,3.99212042]
[1754734143129,8.62399973,183.11,183.05,7.87399973]
[1754734143296,8.62399973,183.11,183.06,3.99794173]
[1754734143498,5.46149645,183.1,183.07,3.99794173]
[1754734143807,5.46149645,183.1,183.08,3.99794173]
[1754734144005,5.46149645,183.1,183.09,3.99794173]
[1754734144394,6.16149645,183.1,183.09,3.99794173]
[1754734144591,14.03549618,183.1,183.09,3.99794173]
[1754734144805,14.03549618,183.1,183.04,0.68]
[1754734145009,7.87399973,183.09,183.05,4.00181411]
[1754734145212,14.03549618,183.1,183.06,4.00181411]
[1754734145499,14.03549618,183.1,183.07,4.00181411]
[1754734145693,14.03549618,183.1,183.08,4.00181411]
[1754734145899,14.03549618,183.1,183.09,4.00181411]
[1754734146104,14.03549618,183.1,183.09,4.00277862]
[1754734146709,6.16149645,183.1,183.09,4.00277862]
[1754734147021,14.03549618,183.1,183.09,4.00406954]
[1754734147821,6.16149645,183.1,183.09,4.00406954]
[1754734147995,14.03549618,183.1,183.09,4.00406954]
[1754734148714,0.03,183.11,183.09,12.55806927]
[1754734148910,0.03,183.11,183.1,12.55806927]
[1754734149112,5.49119818,183.11,183.1,12.55806927]
[1754734149318,0.03,183.11,183.1,12.55806927]
[1754734149698,5.49119818,183.11,183.1,12.55806927]
[1754734149901,5.49119818,183.11,183.1,4.68406954]
[1754734150101,5.49119818,183.11,183.1,12.55806927]
[1754734150517,5.49119818,183.11,183.1,4.00406954]
[1754734150711,0.03,183.11,183.1,11.87806927]
[1754734150997,0.03,183.11,183.1,12.55806927]
[1754734153110,0.03,183.11,183.1,18.01956572]
[1754734153920,0.03,183.11,183.1,58.55956572]
[1754734156134,0.03,183.11,183.1,58.51956572]
[1754734158708,0.03,183.13,183.12,26.0]
[1754734158911,26.97463277,183.24,183.12,11.85812663]
[1754734159116,0.7,183.21,183.18,7.87399973]
[1754734159321,0.7,183.21,183.19,3.9841269]
[1754734159523,0.7,183.2,183.19,3.9841269]
[1754734159730,0.7,183.22,183.19,3.9841269]
[1754734159931,0.7,183.21,183.19,3.9841269]
[1754734160121,5.45851528,183.2,183.19,3.9841269]
[1754734160329,5.45851528,183.2,183.18,48.29399973]
[1754734162024,5.45827218,183.21,183.19,7.87399973]
[1754734162424,0.7,183.21,183.19,7.87399973]
[1754734163433,0.7,183.21,183.18,40.42]
[1754734163615,7.87399973,183.24,183.19,7.87399973]
[1754734163616,0.7,183.23,183.19,7.87399973]
[1754734163815,7.90399973,183.26,183.2,7.87399973]
[1754734164035,5.45702592,183.25,183.21,7.87399973]
[1754734164235,5.45702592,183.25,183.21,48.85399973]
[1754734164460,6.15702592,183.25,183.21,48.17399973]
[1754734164638,0.7,183.24,183.21,48.17399973]
[1754734165940,5.45702592,183.25,183.21,48.17399973]
[1754734166440,6.15702592,183.25,183.21,48.17399973]
[1754734166620,6.15702592,183.25,183.21,40.3]
[1754734166822,6.15702592,183.25,183.21,40.98]
[1754734167041,6.15702592,183.25,183.21,48.17399973]
[1754734167237,5.45702592,183.25,183.22,7.87399973]
[1754734167613,5.48702592,183.25,183.23,7.87399973]
[1754734167821,5.48702592,183.25,183.22,7.87399973]
[1754734168617,6.18702592,183.25,183.22,7.87399973]
[1754734168830,6.18702592,183.25,183.21,40.3]
[1754734169033,6.18702592,183.25,183.21,48.17399973]
[1754734169230,5.48702592,183.25,183.22,7.87399973]
[1754734169439,6.18702592,183.25,183.22,7.87399973]
[1754734170039,5.48702592,183.25,183.22,7.87399973]
[1754734170232,5.48702592,183.25,183.23,7.87399973]
[1754734171861,0.03,183.25,183.23,0.68]
[1754734172022,0.03,183.25,183.24,7.87399973]
[1754734172534,0.03,183.25,183.24,48.05399973]
[1754734172732,0.03,183.25,183.24,45.00561247]
[1754734172917,0.03,183.25,183.24,45.68561247]
[1754734174630,0.03,183.25,183.24,48.72084383]
[1754734175249,0.03,183.25,183.24,52.68709982]
[1754734177133,0.03,183.25,183.24,52.00709982]
[1754734177333,0.03,183.25,183.24,52.70709982]
[1754734177639,0.03,183.25,183.24,58.16442354]
[1754734177842,0.03,183.25,183.24,52.70709982]
[1754734178658,0.03,183.25,183.24,58.16442354]
[1754734178851,0.03,183.25,183.24,50.30357971]
[1754734179152,0.03,183.25,183.24,80.19816755]
[1754734179355,0.03,183.25,183.24,84.18437424]
[1754734179539,0.03,183.25,183.24,84.08437424]
[1754734180057,0.03,183.25,183.24,58.08437424]
[1754734181235,0.03,183.25,183.24,18.00437424]